[Event "*** Titled Tuesday Blitz"]
[Site "Chess.com"]
[Date "2021.02.09"]
[Round "4"]
[White "Alexander_Moskalenko"]
[Black "mishanick"]
[Result "1-0"]
[WhiteElo "2791"]
[BlackElo "2930"]
[TimeControl "180+1"]
[EndTime "10:40:46 PST"]
[Termination "Alexander_Moskalenko won by resignation"]

1. d4 {[%clk 0:03:00.9]} 1... Nf6 {[%clk 0:02:59.7]} 2. Bg5 {[%clk 0:03:00.1]}
2... e6 {[%clk 0:02:58]} 3. e4 {[%clk 0:03:00]} 3... Be7 {[%clk 0:02:56.9]} 4.
Nc3 {[%clk 0:02:59.1]} 4... d6 {[%clk 0:02:50.5]} 5. Qd2 {[%clk 0:02:54.7]} 5...
h6 {[%clk 0:02:50.4]} 6. Bf4 {[%clk 0:02:48.4]} 6... Nc6 {[%clk 0:02:45.3]} 7.
O-O-O {[%clk 0:02:43.5]} 7... e5 {[%clk 0:02:41.6]} 8. dxe5 {[%clk 0:02:40]}
8... dxe5 {[%clk 0:02:41.2]} 9. Qxd8+ {[%clk 0:02:40.9]} 9... Bxd8 {[%clk
0:02:41.7]} 10. Bg3 {[%clk 0:02:41.8]} 10... Nh5 {[%clk 0:02:33]} 11. Bb5 {[%clk
0:02:36.5]} 11... Bd7 {[%clk 0:02:29.6]} 12. Nf3 {[%clk 0:02:31.5]} 12... f6
{[%clk 0:02:26.7]} 13. Nh4 {[%clk 0:02:28.1]} 13... a6 {[%clk 0:02:14]} 14. Be2
{[%clk 0:02:23]} 14... Nxg3 {[%clk 0:02:12.6]} 15. hxg3 {[%clk 0:02:23.9]} 15...
Be6 {[%clk 0:02:05.8]} 16. Bh5+ {[%clk 0:02:17.4]} 16... Bf7 {[%clk 0:02:05.8]}
17. Bxf7+ {[%clk 0:02:15.4]} 17... Kxf7 {[%clk 0:02:06.7]} 18. Rd7+ {[%clk
0:02:15.8]} 18... Ne7 {[%clk 0:02:07.3]} 19. Nd5 {[%clk 0:02:10]} 19... Ke6
{[%clk 0:01:54.3]} 20. Rxe7+ {[%clk 0:02:09.9]} 20... Bxe7 {[%clk 0:01:54.3]}
21. Nxc7+ {[%clk 0:02:10.6]} 21... Kf7 {[%clk 0:01:54.1]} 22. Nxa8 {[%clk
0:02:11.5]} 22... Rxa8 {[%clk 0:01:53.4]} 23. Rd1 {[%clk 0:01:53.5]} 23... Ke6
{[%clk 0:01:52]} 24. Nf5 {[%clk 0:01:52.3]} 24... Bf8 {[%clk 0:01:50.3]} 25. f3
{[%clk 0:01:47]} 25... h5 {[%clk 0:01:46.3]} 26. c3 {[%clk 0:01:46.1]} 26... g6
{[%clk 0:01:42.6]} 27. Nh4 {[%clk 0:01:45.8]} 27... Bh6+ {[%clk 0:01:42.3]} 28.
Kc2 {[%clk 0:01:46.2]} 28... Rg8 {[%clk 0:01:42.7]} 29. a4 {[%clk 0:01:35.1]}
29... Be3 {[%clk 0:01:41.3]} 30. Rf1 {[%clk 0:00:53.4]} 30... f5 {[%clk
0:01:23.4]} 31. Kd3 {[%clk 0:00:43.6]} 31... Bg5 {[%clk 0:01:18]} 32. f4 {[%clk
0:00:37.6]} 32... exf4 {[%clk 0:01:11.1]} 33. Nf3 {[%clk 0:00:37.9]} 33... Bh6
{[%clk 0:00:58.6]} 34. Nd4+ {[%clk 0:00:35.8]} 34... Ke5 {[%clk 0:00:56.5]} 35.
exf5 {[%clk 0:00:14.6]} 35... fxg3 {[%clk 0:00:18.3]} 36. fxg6 {[%clk
0:00:14.2]} 36... Rxg6 {[%clk 0:00:17.6]} 37. Rf5+ {[%clk 0:00:14.7]} 37... Kd6
{[%clk 0:00:18.1]} 38. Rxh5 {[%clk 0:00:15.2]} 38... Bc1 {[%clk 0:00:16.4]} 39.
b4 {[%clk 0:00:13.5]} 39... Kc7 {[%clk 0:00:13.1]} 40. a5 {[%clk 0:00:13.1]}
40... Bf4 {[%clk 0:00:11.5]} 41. Ke4 {[%clk 0:00:12.7]} 41... Bd6 {[%clk
0:00:11.2]} 42. Rh7+ {[%clk 0:00:11.9]} 42... Kb8 {[%clk 0:00:11.3]} 43. Nf5
{[%clk 0:00:10.9]} 43... Bc7 {[%clk 0:00:10.2]} 44. Re7 {[%clk 0:00:08]} 44...
Rg4+ {[%clk 0:00:09.8]} 45. Kd3 {[%clk 0:00:06.3]} 45... Rf4 {[%clk 0:00:09.3]}
46. Ne3 {[%clk 0:00:06.8]} 46... Rf2 {[%clk 0:00:09.3]} 47. Re8+ {[%clk
0:00:04.5]} 47... Ka7 {[%clk 0:00:07.8]} 48. Rg8 {[%clk 0:00:05.4]} 48... b6
{[%clk 0:00:04.3]} 49. Rg7 {[%clk 0:00:05.1]} 49... Kb8 {[%clk 0:00:04.4]} 50.
Nd5 {[%clk 0:00:05.4]} 50... Bd8 {[%clk 0:00:04.9]} 51. axb6 {[%clk 0:00:05.1]}
51... Rxg2 {[%clk 0:00:05.3]} 52. Rg8 {[%clk 0:00:05.5]} 52... Kc8 {[%clk
0:00:05.9]} 53. b7+ {[%clk 0:00:06]} 53... Kxb7 {[%clk 0:00:06.4]} 54. Rxd8
{[%clk 0:00:06.7]} 54... Rg1 {[%clk 0:00:07.3]} 55. Rg8 {[%clk 0:00:07]} 55...
Kc6 {[%clk 0:00:07.3]} 56. Kc4 {[%clk 0:00:07.3]} 56... Kd6 {[%clk 0:00:06.4]}
57. Rg6+ {[%clk 0:00:08.2]} 57... Ke5 {[%clk 0:00:06.8]} 58. Ne3 {[%clk
0:00:07.7]} 58... Ke4 {[%clk 0:00:06.3]} 59. Nc2 {[%clk 0:00:07.8]} 59... Kf5
{[%clk 0:00:06]} 60. Rg8 {[%clk 0:00:06.8]} 60... Ke4 {[%clk 0:00:06]} 61. Nd4
{[%clk 0:00:06.9]} 61... Ke3 {[%clk 0:00:05.7]} 62. Nf5+ {[%clk 0:00:06.9]}
62... Kf4 {[%clk 0:00:06.1]} 63. Rxg3 {[%clk 0:00:07.8]} 63... Re1 {[%clk
0:00:06.2]} 64. Rg6 {[%clk 0:00:06.2]} 64... Re4+ {[%clk 0:00:05.8]} 65. Kb3
{[%clk 0:00:05.9]} 65... a5 {[%clk 0:00:06.3]} 66. Nd6 {[%clk 0:00:04.6]} 66...
Re1 {[%clk 0:00:05.2]} 67. bxa5 {[%clk 0:00:05]} 1-0

[Event "*** Titled Tuesday Blitz"]
[Site "Chess.com"]
[Date "2021.02.09"]
[Round "4"]
[White "Joseacorrea"]
[Black "chesslh19"]
[Result "0-1"]
[WhiteElo "1994"]
[BlackElo "2246"]
[TimeControl "180+1"]
[EndTime "10:40:48 PST"]
[Termination "chesslh19 won on time"]

1. c4 {[%clk 0:03:00.9]} 1... e6 {[%clk 0:02:39.5]} 2. Nc3 {[%clk 0:03:00.7]}
2... d5 {[%clk 0:02:38.2]} 3. cxd5 {[%clk 0:03:01.6]} 3... exd5 {[%clk
0:02:38.4]} 4. d4 {[%clk 0:03:02.5]} 4... Nf6 {[%clk 0:02:38.7]} 5. Nf3 {[%clk
0:03:03]} 5... c6 {[%clk 0:02:35.1]} 6. Bg5 {[%clk 0:03:03.5]} 6... Be7 {[%clk
0:02:32.5]} 7. e3 {[%clk 0:03:03.6]} 7... Bf5 {[%clk 0:02:31.9]} 8. Bd3 {[%clk
0:03:03]} 8... Bxd3 {[%clk 0:02:32.1]} 9. Qxd3 {[%clk 0:03:03.8]} 9... Nbd7
{[%clk 0:02:31.5]} 10. O-O {[%clk 0:03:03.5]} 10... O-O {[%clk 0:02:31.5]} 11.
Rac1 {[%clk 0:03:02.5]} 11... Re8 {[%clk 0:02:29.6]} 12. Rfd1 {[%clk 0:02:58.3]}
12... Ne4 {[%clk 0:02:06.9]} 13. Bxe7 {[%clk 0:02:27]} 13... Qxe7 {[%clk
0:02:06.5]} 14. Ne2 {[%clk 0:02:07.3]} 14... h6 {[%clk 0:02:01.8]} 15. Ng3
{[%clk 0:02:02.3]} 15... Qd6 {[%clk 0:01:14.3]} 16. Nd2 {[%clk 0:01:45.4]} 16...
Nxg3 {[%clk 0:01:06.4]} 17. hxg3 {[%clk 0:01:46.3]} 17... Nf6 {[%clk 0:01:04.5]}
18. Rc2 {[%clk 0:01:36.5]} 18... Ne4 {[%clk 0:01:01.4]} 19. Nxe4 {[%clk
0:01:22.9]} 19... Rxe4 {[%clk 0:01:02.3]} 20. Rdc1 {[%clk 0:01:22.1]} 20... Rae8
{[%clk 0:01:00.6]} 21. a3 {[%clk 0:01:17.9]} 21... a5 {[%clk 0:00:58.7]} 22. Rc5
{[%clk 0:01:16.4]} 22... Ra8 {[%clk 0:00:52]} 23. Qc3 {[%clk 0:01:12.8]} 23...
Re7 {[%clk 0:00:48.4]} 24. Rxa5 {[%clk 0:01:07.7]} 24... Ree8 {[%clk 0:00:42.7]}
25. Qc5 {[%clk 0:00:48.4]} 25... Qxc5 {[%clk 0:00:36.9]} 26. Raxc5 {[%clk
0:00:38.6]} 26... Ra6 {[%clk 0:00:32.9]} 27. R1c3 {[%clk 0:00:37.1]} 27... Rb6
{[%clk 0:00:30.5]} 28. b4 {[%clk 0:00:34.9]} 28... Ra8 {[%clk 0:00:29.3]} 29.
Kf1 {[%clk 0:00:11.9]} 29... Kf8 {[%clk 0:00:22.1]} 30. Ke2 {[%clk 0:00:11.3]}
30... Ke7 {[%clk 0:00:20.5]} 31. Kd3 {[%clk 0:00:11.4]} 31... Kd7 {[%clk
0:00:13.8]} 32. Kc2 {[%clk 0:00:11.4]} 32... Rba6 {[%clk 0:00:12.3]} 33. Kb2
{[%clk 0:00:11.9]} 33... Rb6 {[%clk 0:00:12.6]} 34. Kb3 {[%clk 0:00:10.2]} 34...
Rba6 {[%clk 0:00:12.5]} 35. Kb2 {[%clk 0:00:10.8]} 35... Rb6 {[%clk 0:00:12.9]}
36. f3 {[%clk 0:00:10.7]} 36... Kd6 {[%clk 0:00:09.9]} 37. e4 {[%clk 0:00:09.4]}
37... dxe4 {[%clk 0:00:06.6]} 38. fxe4 {[%clk 0:00:10.3]} 38... Re8 {[%clk
0:00:07]} 39. e5+ {[%clk 0:00:08.7]} 39... Kd7 {[%clk 0:00:07.5]} 40. d5 {[%clk
0:00:06]} 40... cxd5 {[%clk 0:00:04]} 41. Rxd5+ {[%clk 0:00:06.3]} 41... Ke6
{[%clk 0:00:04.4]} 42. Rdc5 {[%clk 0:00:04.7]} 42... Kf5 {[%clk 0:00:04.1]} 43.
Rf3+ {[%clk 0:00:04.7]} 43... Kg6 {[%clk 0:00:03]} 44. Rd3 {[%clk 0:00:02.5]}
44... Rbe6 {[%clk 0:00:01.9]} 45. Rd7 {[%clk 0:00:02.2]} 45... b6 {[%clk
0:00:02.1]} 46. Rcd5 {[%clk 0:00:01.4]} 46... Rxe5 {[%clk 0:00:02.2]} 47. Rxe5
{[%clk 0:00:01.5]} 47... Rxe5 {[%clk 0:00:03.1]} 48. Rd6+ {[%clk 0:00:01.9]}
48... Re6 {[%clk 0:00:02.8]} 49. Rxe6+ {[%clk 0:00:02]} 49... fxe6 {[%clk
0:00:03.7]} 50. Kc3 {[%clk 0:00:02.6]} 50... Kf5 {[%clk 0:00:03.8]} 51. Kd4
{[%clk 0:00:03.5]} 51... Kg4 {[%clk 0:00:04]} 52. a4 {[%clk 0:00:01.8]} 52...
Kxg3 {[%clk 0:00:04.4]} 53. a5 {[%clk 0:00:02.4]} 53... bxa5 {[%clk 0:00:05.3]}
54. bxa5 {[%clk 0:00:02.2]} 54... Kxg2 {[%clk 0:00:06]} 55. a6 {[%clk
0:00:02.8]} 55... e5+ {[%clk 0:00:06.4]} 56. Kxe5 {[%clk 0:00:02.6]} 56... h5
{[%clk 0:00:07.3]} 57. a7 {[%clk 0:00:03.1]} 57... h4 {[%clk 0:00:07.3]} 58.
a8=Q+ {[%clk 0:00:03]} 58... Kg1 {[%clk 0:00:07.1]} 59. Qg8 {[%clk 0:00:03]}
59... h3 {[%clk 0:00:06.4]} 60. Qxg7+ {[%clk 0:00:03.1]} 60... Kh1 {[%clk
0:00:06.4]} 61. Qh6 {[%clk 0:00:01.6]} 61... h2 {[%clk 0:00:06.7]} 62. Kf4
{[%clk 0:00:01.1]} 62... Kg2 {[%clk 0:00:06.7]} 63. Qg5+ {[%clk 0:00:01.8]}
63... Kh1 {[%clk 0:00:06.9]} 64. Qh4 {[%clk 0:00:02]} 64... Kg2 {[%clk
0:00:07.1]} 65. Qg4+ {[%clk 0:00:01.7]} 65... Kh1 {[%clk 0:00:07.5]} 66. Qh4
{[%clk 0:00:01.1]} 66... Kg2 {[%clk 0:00:07.6]} 67. Qe1 {[%clk 0:00:01.1]} 67...
h1=Q {[%clk 0:00:07.2]} 0-1

[Event "*** Titled Tuesday Blitz"]
[Site "Chess.com"]
[Date "2021.02.09"]
[Round "4"]
[White "HajiyevKanan"]
[Black "PavelShkapenko"]
[Result "0-1"]
[WhiteElo "2496"]
[BlackElo "2707"]
[TimeControl "180+1"]
[EndTime "10:40:53 PST"]
[Termination "PavelShkapenko won by checkmate"]

1. d4 {[%clk 0:03:00.9]} 1... Nf6 {[%clk 0:02:59.6]} 2. Nf3 {[%clk 0:03:00.1]}
2... e6 {[%clk 0:02:59.8]} 3. c4 {[%clk 0:02:59.7]} 3... Bb4+ {[%clk 0:02:59]}
4. Nbd2 {[%clk 0:02:59.3]} 4... d5 {[%clk 0:02:53.4]} 5. cxd5 {[%clk 0:02:59]}
5... exd5 {[%clk 0:02:52.8]} 6. Qa4+ {[%clk 0:02:59.2]} 6... Nc6 {[%clk
0:02:52.7]} 7. Ne5 {[%clk 0:02:59.6]} 7... Bxd2+ {[%clk 0:02:41.4]} 8. Bxd2
{[%clk 0:02:58.9]} 8... Bd7 {[%clk 0:02:41.5]} 9. Nxd7 {[%clk 0:02:55.8]} 9...
Nxd7 {[%clk 0:02:34.8]} 10. Bb4 {[%clk 0:02:39.9]} 10... Nb6 {[%clk 0:02:33.2]}
11. Qb3 {[%clk 0:02:29.6]} 11... Nxd4 {[%clk 0:02:28.4]} 12. Qe3+ {[%clk
0:02:23.3]} 12... Ne6 {[%clk 0:02:28.3]} 13. O-O-O {[%clk 0:02:19.7]} 13... a5
{[%clk 0:02:20]} 14. Ba3 {[%clk 0:02:05.8]} 14... Nc4 {[%clk 0:02:18.3]} 15. Qf3
{[%clk 0:01:43.7]} 15... Qg5+ {[%clk 0:01:57.4]} 16. Kb1 {[%clk 0:01:31.9]}
16... Nxa3+ {[%clk 0:01:56.5]} 17. Qxa3 {[%clk 0:01:25.6]} 17... c6 {[%clk
0:01:56]} 18. e4 {[%clk 0:01:10.7]} 18... dxe4 {[%clk 0:01:51]} 19. Bc4 {[%clk
0:01:09.6]} 19... Qe7 {[%clk 0:01:50.4]} 20. Qe3 {[%clk 0:00:45.1]} 20... Nc5
{[%clk 0:01:09.1]} 21. Rhe1 {[%clk 0:00:39.8]} 21... O-O {[%clk 0:01:08.3]} 22.
f3 {[%clk 0:00:38.3]} 22... Rad8 {[%clk 0:00:48.7]} 23. Rxd8 {[%clk 0:00:32.6]}
23... Rxd8 {[%clk 0:00:48.3]} 24. fxe4 {[%clk 0:00:32.6]} 24... Nd7 {[%clk
0:00:48.4]} 25. e5 {[%clk 0:00:31.3]} 25... Re8 {[%clk 0:00:44.7]} 26. e6 {[%clk
0:00:25.9]} 26... fxe6 {[%clk 0:00:44.3]} 27. Qxe6+ {[%clk 0:00:19.2]} 27...
Qxe6 {[%clk 0:00:40.5]} 28. Rxe6 {[%clk 0:00:20.1]} 28... Kf8 {[%clk 0:00:40.8]}
29. Rd6 {[%clk 0:00:14.7]} 29... Ne5 {[%clk 0:00:28.5]} 30. Bb3 {[%clk
0:00:07.7]} 30... Ke7 {[%clk 0:00:24.7]} 31. Re6+ {[%clk 0:00:07.4]} 31... Kd7
{[%clk 0:00:25.1]} 32. Rxe8 {[%clk 0:00:07.5]} 32... Kxe8 {[%clk 0:00:26]} 33.
h3 {[%clk 0:00:07.7]} 33... Ke7 {[%clk 0:00:26.1]} 34. Kc2 {[%clk 0:00:08.2]}
34... Kd6 {[%clk 0:00:26.3]} 35. Kc3 {[%clk 0:00:08.8]} 35... Kc5 {[%clk
0:00:26.5]} 36. Bc2 {[%clk 0:00:08.9]} 36... b6 {[%clk 0:00:26.1]} 37. Bxh7
{[%clk 0:00:09.1]} 37... b5 {[%clk 0:00:25.6]} 38. a3 {[%clk 0:00:08.7]} 38...
b4+ {[%clk 0:00:25.2]} 39. axb4+ {[%clk 0:00:09.6]} 39... axb4+ {[%clk
0:00:26.1]} 40. Kb3 {[%clk 0:00:09.5]} 40... Nc4 {[%clk 0:00:25]} 41. Bg8 {[%clk
0:00:08.9]} 41... Ne3 {[%clk 0:00:24.9]} 42. g4 {[%clk 0:00:07.8]} 42... g5
{[%clk 0:00:25.1]} 43. Be6 {[%clk 0:00:07.3]} 43... Ng2 {[%clk 0:00:24.9]} 44.
Bf5 {[%clk 0:00:05]} 44... Nf4 {[%clk 0:00:25]} 45. h4 {[%clk 0:00:04.8]} 45...
gxh4 {[%clk 0:00:25.2]} 46. g5 {[%clk 0:00:05.6]} 46... Kd6 {[%clk 0:00:17.9]}
47. Kxb4 {[%clk 0:00:06.5]} 47... Ke5 {[%clk 0:00:17.9]} 48. g6 {[%clk
0:00:05.9]} 48... Kf6 {[%clk 0:00:14.8]} 49. Be4 {[%clk 0:00:06]} 49... Nxg6
{[%clk 0:00:12.5]} 50. Bxc6 {[%clk 0:00:06.2]} 50... Kg5 {[%clk 0:00:12.6]} 51.
Kc5 {[%clk 0:00:05.5]} 51... Nf4 {[%clk 0:00:12.5]} 52. b4 {[%clk 0:00:04.4]}
52... Nd3+ {[%clk 0:00:12.2]} 53. Kc4 {[%clk 0:00:04.4]} 53... Ne5+ {[%clk
0:00:09.3]} 54. Kd5 {[%clk 0:00:04.6]} 54... Nxc6 {[%clk 0:00:09.6]} 55. Kxc6
{[%clk 0:00:05.5]} 55... h3 {[%clk 0:00:10.1]} 56. b5 {[%clk 0:00:06.4]} 56...
h2 {[%clk 0:00:10.6]} 57. b6 {[%clk 0:00:07.3]} 57... h1=Q+ {[%clk 0:00:10.8]}
58. Kc7 {[%clk 0:00:08.2]} 58... Qc1+ {[%clk 0:00:10.7]} 59. Kb8 {[%clk
0:00:08.6]} 59... Qf4+ {[%clk 0:00:10.5]} 60. Ka8 {[%clk 0:00:07.7]} 60... Qa4+
{[%clk 0:00:10.3]} 61. Kb8 {[%clk 0:00:07.6]} 61... Qe8+ {[%clk 0:00:08.8]} 62.
Ka7 {[%clk 0:00:07.6]} 62... Qe3 {[%clk 0:00:08]} 63. Ka6 {[%clk 0:00:06.8]}
63... Qa3+ {[%clk 0:00:07.9]} 64. Kb7 {[%clk 0:00:05.5]} 64... Kf6 {[%clk
0:00:07.5]} 65. Kc7 {[%clk 0:00:06.4]} 65... Qc5+ {[%clk 0:00:07.5]} 66. Kb7
{[%clk 0:00:06.7]} 66... Ke6 {[%clk 0:00:07.9]} 67. Ka7 {[%clk 0:00:07.2]} 67...
Qa5+ {[%clk 0:00:08.1]} 68. Kb7 {[%clk 0:00:07.1]} 68... Kd6 {[%clk 0:00:08.5]}
69. Kc8 {[%clk 0:00:06.8]} 69... Kc6 {[%clk 0:00:08.2]} 70. b7 {[%clk
0:00:06.3]} 70... Qc7# {[%clk 0:00:08.4]} 0-1

[Event "*** Titled Tuesday Blitz"]
[Site "Chess.com"]
[Date "2021.02.09"]
[Round "4"]
[White "AldokhinIvan"]
[Black "Nachsueb"]
[Result "1/2-1/2"]
[WhiteElo "2477"]
[BlackElo "2190"]
[TimeControl "180+1"]
[EndTime "10:40:57 PST"]
[Termination "Game drawn by stalemate"]

1. e4 {[%clk 0:02:57.4]} 1... c5 {[%clk 0:02:59.9]} 2. Nf3 {[%clk 0:02:57.9]}
2... e6 {[%clk 0:03:00.4]} 3. d4 {[%clk 0:02:58.4]} 3... cxd4 {[%clk 0:03:01.3]}
4. Nxd4 {[%clk 0:02:59]} 4... Nc6 {[%clk 0:03:01.5]} 5. Nc3 {[%clk 0:02:58.3]}
5... a6 {[%clk 0:03:01.7]} 6. Nxc6 {[%clk 0:02:57.3]} 6... bxc6 {[%clk 0:03:01]}
7. Bd3 {[%clk 0:02:58.2]} 7... Qc7 {[%clk 0:03:00.4]} 8. O-O {[%clk 0:02:59.1]}
8... Nf6 {[%clk 0:03:00.1]} 9. Qe2 {[%clk 0:02:58.6]} 9... Bb4 {[%clk
0:02:56.1]} 10. e5 {[%clk 0:02:56.2]} 10... Nd5 {[%clk 0:02:53.2]} 11. Bd2
{[%clk 0:02:47.5]} 11... Nxc3 {[%clk 0:02:45]} 12. bxc3 {[%clk 0:02:43.8]} 12...
Be7 {[%clk 0:02:44.9]} 13. f4 {[%clk 0:02:18.5]} 13... O-O {[%clk 0:02:38.5]}
14. c4 {[%clk 0:01:54.3]} 14... f6 {[%clk 0:02:09.4]} 15. f5 {[%clk 0:01:48.6]}
15... Qxe5 {[%clk 0:01:59.7]} 16. Qxe5 {[%clk 0:01:47.8]} 16... fxe5 {[%clk
0:02:00.6]} 17. fxe6 {[%clk 0:01:48.7]} 17... d5 {[%clk 0:01:39.9]} 18. cxd5
{[%clk 0:01:42.6]} 18... cxd5 {[%clk 0:01:40.8]} 19. Rxf8+ {[%clk 0:01:39.4]}
19... Bxf8 {[%clk 0:01:39]} 20. Bf5 {[%clk 0:01:35.1]} 20... g6 {[%clk
0:01:37.8]} 21. Bg4 {[%clk 0:01:28.3]} 21... Ra7 {[%clk 0:01:35.8]} 22. Rb1
{[%clk 0:01:13.5]} 22... Rb7 {[%clk 0:01:09.9]} 23. Rxb7 {[%clk 0:01:02.5]}
23... Bxb7 {[%clk 0:01:10.8]} 24. Bg5 {[%clk 0:01:03]} 24... Bc5+ {[%clk
0:01:06]} 25. Kf1 {[%clk 0:01:00.7]} 25... Kf8 {[%clk 0:01:05.1]} 26. c3 {[%clk
0:00:49.3]} 26... Be7 {[%clk 0:01:04.7]} 27. Bh6+ {[%clk 0:00:48.6]} 27... Ke8
{[%clk 0:01:02.8]} 28. Ke2 {[%clk 0:00:47.4]} 28... Bf6 {[%clk 0:00:59.8]} 29.
Bc1 {[%clk 0:00:42.9]} 29... Bc8 {[%clk 0:00:57.5]} 30. Kd3 {[%clk 0:00:31.5]}
30... e4+ {[%clk 0:00:52.1]} 31. Kc2 {[%clk 0:00:28.7]} 31... h5 {[%clk
0:00:36.8]} 32. Bh3 {[%clk 0:00:28]} 32... g5 {[%clk 0:00:34.7]} 33. Bf5 {[%clk
0:00:28]} 33... h4 {[%clk 0:00:31.7]} 34. h3 {[%clk 0:00:22.4]} 34... Ke7 {[%clk
0:00:31.1]} 35. Ba3+ {[%clk 0:00:21.8]} 35... Ke8 {[%clk 0:00:31.6]} 36. Bc5
{[%clk 0:00:16.3]} 36... Kd8 {[%clk 0:00:28.4]} 37. Bb6+ {[%clk 0:00:15.1]}
37... Ke8 {[%clk 0:00:28.4]} 38. Bc5 {[%clk 0:00:15.7]} 38... Be7 {[%clk
0:00:20.5]} 39. Be3 {[%clk 0:00:14.6]} 39... Bf6 {[%clk 0:00:20.4]} 40. Kb3
{[%clk 0:00:14]} 40... Be7 {[%clk 0:00:19.7]} 41. c4 {[%clk 0:00:08.2]} 41...
dxc4+ {[%clk 0:00:16]} 42. Kxc4 {[%clk 0:00:09.1]} 42... Bb7 {[%clk 0:00:15.4]}
43. Bg6+ {[%clk 0:00:09.2]} 43... Kf8 {[%clk 0:00:13.8]} 44. Bd4 {[%clk
0:00:09.1]} 44... Bd8 {[%clk 0:00:13.2]} 45. Bf5 {[%clk 0:00:05.8]} 45... Ke7
{[%clk 0:00:12.7]} 46. Kc5 {[%clk 0:00:04.3]} 46... Bc8 {[%clk 0:00:11.6]} 47.
Be3 {[%clk 0:00:04.5]} 47... Bxe6 {[%clk 0:00:11.5]} 48. Bxg5+ {[%clk
0:00:03.9]} 48... Ke8 {[%clk 0:00:09.1]} 49. Bg6+ {[%clk 0:00:04]} 49... Kd7
{[%clk 0:00:08.6]} 50. Bxd8 {[%clk 0:00:04.5]} 50... Kxd8 {[%clk 0:00:09.5]} 51.
Bxe4 {[%clk 0:00:05.1]} 51... Bxa2 {[%clk 0:00:06.4]} 52. Kb6 {[%clk 0:00:02.1]}
52... Bc4 {[%clk 0:00:05.9]} 53. Bb7 {[%clk 0:00:02.1]} 53... Ke7 {[%clk
0:00:06.3]} 54. Bxa6 {[%clk 0:00:02.2]} 54... Bd5 {[%clk 0:00:06.8]} 55. Bb7
{[%clk 0:00:02.3]} 55... Bxg2 {[%clk 0:00:06.8]} 56. Bxg2 {[%clk 0:00:01.9]}
56... Kf6 {[%clk 0:00:07.3]} 57. Kc6 {[%clk 0:00:02.3]} 57... Kg7 {[%clk
0:00:08.2]} 58. Kd5 {[%clk 0:00:02.8]} 58... Kh8 {[%clk 0:00:09.1]} 59. Ke4
{[%clk 0:00:03.5]} 59... Kg7 {[%clk 0:00:09.6]} 60. Kf4 {[%clk 0:00:04.4]} 60...
Kh8 {[%clk 0:00:10]} 61. Kg5 {[%clk 0:00:04.9]} 61... Kg7 {[%clk 0:00:10.9]} 62.
Bd5 {[%clk 0:00:05.7]} 62... Kh8 {[%clk 0:00:11.8]} 63. Kxh4 {[%clk 0:00:04.3]}
63... Kg7 {[%clk 0:00:12.7]} 64. Kg5 {[%clk 0:00:04.8]} 64... Kh8 {[%clk
0:00:13.6]} 65. h4 {[%clk 0:00:05.7]} 65... Kg7 {[%clk 0:00:14.3]} 66. h5 {[%clk
0:00:06.6]} 66... Kh8 {[%clk 0:00:14.9]} 67. h6 {[%clk 0:00:07.5]} 67... Kh7
{[%clk 0:00:15]} 68. Kh5 {[%clk 0:00:07.7]} 68... Kh8 {[%clk 0:00:15.9]} 69. Kg6
{[%clk 0:00:08.3]} 1/2-1/2